fUSD/lending_fUSD_20250623
["ID","MTS","AMOUNT","RATE_DAILY","PERIOD"]
[367115635,1750662730083,-798.12,0.00029863,3]
[367115636,1750662730092,-1292.66,0.00029863,3]
[367115637,1750662730102,-316.58259577,0.00029863,3]
[367115638,1750662730111,-2292.5,0.00029863,3]
[367115639,1750662730120,-2903.63,0.00029863,3]
[367115640,1750662730131,-1562.1,0.00029863,3]
[367115641,1750662730140,-4219.23,0.00029863,3]
[367115642,1750662730151,-765.43,0.00029863,3]
[367115643,1750662730161,-1872.32,0.00029863,3]
[367115644,1750662730172,-3240.53,0.00029863,3]
[367115645,1750662730181,-492.32,0.00029863,3]
[367115646,1750662730192,-1684.89,0.00029863,3]
[367115647,1750662730201,-1499.13,0.00029863,3]
[367115648,1750662730211,-1822.31,0.00029863,3]
[367115649,1750662730221,-2262.37,0.00029863,3]
[367115650,1750662730232,-490.0,0.00029863,3]
[367115651,1750662730244,-745.32,0.00029863,3]
[367115652,1750662730254,-490.0,0.00029863,3]
[367115653,1750662730263,-1565.33,0.00029863,3]
[367115654,1750662730273,-3248.59,0.00029863,3]
[367115655,1750662730282,-1599.78,0.00029863,3]
[367115656,1750662730292,-1190.83,0.00029863,3]
[367115657,1750662730301,-795.18,0.00029863,3]
[367115658,1750662730311,-638.67,0.00029863,3]
[367115659,1750662730320,-8785.1,0.00029863,3]
[367115660,1750662730331,-849.6,0.00029863,3]
[367115661,1750662730341,-1583.66,0.00029863,3]
[367115662,1750662730351,-1787.94,0.00029863,3]
[367115663,1750662730361,-1444.68,0.00029863,3]
[367115664,1750662730370,-1335.88,0.00029863,3]
[367115665,1750662730379,-948.02,0.00029863,3]
[367115666,1750662730389,-490.0,0.00029863,3]
[367115667,1750662730399,-507.9,0.00029863,3]
[367115668,1750662730408,-3963.91,0.00029863,3]
[367115669,1750662730418,-1578.99,0.00029863,3]
[367115670,1750662730428,-1445.82,0.00029863,3]
[367115671,1750662730438,-1285.59,0.00029863,3]
[367115672,1750662730448,-490.0,0.00029863,3]
[367115673,1750662730458,-490.0,0.00029863,3]
[367115674,1750662730468,-490.0,0.00029863,3]
[367115675,1750662730479,-490.0,0.00029863,3]
[367115676,1750662730490,-728.45,0.00029863,3]
[367115677,1750662730501,-806.96,0.00029863,3]
[367115678,1750662730513,-490.0,0.00029863,3]
[367115679,1750662730526,-1797.81,0.00029863,3]
[367115680,1750662730537,-1831.64,0.00029863,3]
[367115681,1750662730547,-1432.05,0.00029863,3]
[367115682,1750662730556,-919.07,0.00029863,3]
[367115683,1750662730566,-14900.62,0.00029863,3]
[367115684,1750662730575,-1833.67,0.00029863,3]
[367115685,1750662730585,-2078.39,0.00029863,3]
[367115686,1750662730594,-510.45,0.00029863,3]
[367115687,1750662730603,-490.0,0.00029863,3]
[367115688,1750662730613,-379.46257098,0.00029863,3]
[367115689,1750662730622,-4833.93,0.00029863,3]
[367115690,1750662730631,-318.37449331,0.00029863,3]
[367115691,1750662730640,-1601.31,0.00029863,3]
[367115692,1750662730649,-759.06,0.00029863,3]
[367115693,1750662730659,-873.41,0.00029863,3]
[367115694,1750662730668,-4669.42,0.00029863,3]
[367115695,1750662730677,-791.68,0.00029863,3]
[367115696,1750662730686,-1693.53,0.00029863,3]
[367115697,1750662730699,-990.18,0.00029863,3]
[367115698,1750662730708,-1034.99,0.00029863,3]
[367115699,1750662730719,-1620.6,0.00029863,3]
[367115700,1750662730728,-1653.45,0.00029863,3]
[367115701,1750662730737,-1389.7,0.00029863,3]
[367115702,1750662730747,-3451.15,0.00029863,3]
[367115703,1750662730756,-490.0,0.00029863,3]
[367115704,1750662730766,-490.0,0.00029863,3]
[367115705,1750662730775,-993.54,0.00029863,3]
[367115706,1750662730785,-2416.24,0.00029863,3]
[367115707,1750662730794,-566.41,0.00029863,3]
[367115708,1750662730803,-11090.94,0.00029863,3]
[367115709,1750662730813,-1221.42,0.00029863,3]
[367115710,1750662730822,-1799.28,0.00029863,3]
[367115711,1750662730831,-1701.67,0.00029863,3]
[367115712,1750662730840,-2070.18,0.00029863,3]
[367115713,1750662730849,-1378.47,0.00029863,3]
[367115714,1750662730858,-1087.15,0.00029863,3]
[367115715,1750662730867,-1736.17,0.00029863,3]
[367115716,1750662730876,-490.0,0.00029863,3]
[367115717,1750662730886,-1816.97,0.00029863,3]
[367115718,1750662730896,-490.0,0.00029863,3]
[367115719,1750662730905,-709.09,0.00029863,3]
[367115720,1750662730914,-1834.95,0.00029863,3]
[367115721,1750662730924,-1672.0,0.00029863,3]
[367115722,1750662730933,-1571.12,0.00029863,3]
[367115723,1750662730942,-490.0,0.00029863,3]
[367115724,1750662730951,-1351.61,0.00029863,3]
[367115725,1750662730961,-490.0,0.00029863,3]
[367115726,1750662730970,-4884.01,0.00029863,3]
[367115727,1750662730980,-1729.07,0.00029863,3]
[367115728,1750662730989,-8073.75,0.00029863,3]
[367115729,1750662730999,-1652.26,0.00029863,3]
[367115730,1750662731009,-718.8,0.00029863,3]
[367115731,1750662731018,-490.0,0.00029863,3]
[367115732,1750662731028,-867.32,0.00029863,3]
[367115733,1750662731037,-30050.84,0.00029863,3]
[367115734,1750662731047,-490.0,0.00029863,3]
[367115735,1750662731058,-1482.76,0.00029863,3]
[367115736,1750662731068,-1513.2,0.00029863,3]
[367115737,1750662731077,-1869.9,0.00029863,3]
[367115738,1750662731086,-490.0,0.00029863,3]
[367115739,1750662731095,-825.47,0.00029863,3]
[367115740,1750662731105,-1291.21,0.00029863,3]
[367115741,1750662731115,-490.0,0.00029863,3]
[367115742,1750662731125,-529.57,0.00029863,3]
[367115743,1750662731134,-1000.93,0.00029863,3]
[367115744,1750662731144,-1013.98,0.00029863,2]
[367115745,1750662731154,-1301.95,0.00029863,3]
[367115746,1750662731163,-749.71,0.00029863,3]
[367115747,1750662731173,-2626.45,0.00029863,3]
[367115748,1750662731183,-914.97,0.00029863,3]
[367115749,1750662731193,-5331.91,0.00029863,3]
[367115750,1750662731203,-6188.74,0.00029863,3]
[367115751,1750662731213,-2204.74,0.00029863,3]
[367115752,1750662731223,-733.17,0.00029863,3]
[367115753,1750662731233,-742.07,0.00029863,3]
[367115754,1750662731242,-1553.91,0.00029863,3]
[367115755,1750662731254,-866.05,0.00029863,3]
[367115756,1750662731263,-1201.89,0.00029863,3]
[367115757,1750662731272,-5637.09,0.00029863,3]
[367115758,1750662731281,-716.87,0.00029863,3]
[367115759,1750662731291,-490.0,0.00029863,3]
[367115760,1750662731301,-2465.19,0.00029863,3]
[367115761,1750662731310,-1651.87,0.00029863,3]
[367115762,1750662731320,-1607.85,0.00029863,3]
[367115763,1750662731330,-572.05,0.00029863,3]
[367115764,1750662731340,-1906.99,0.00029863,3]
[367115765,1750662731349,-1536.26,0.00029863,3]
[367115766,1750662731359,-1920.56,0.00029863,3]
[367115767,1750662731368,-2965.58,0.00029863,3]
[367115768,1750662731378,-1131.73,0.00029863,3]
[367115769,1750662731388,-764.72,0.00029863,3]
[367115770,1750662731397,-594.04,0.00029863,3]
[367115771,1750662731407,-490.0,0.00029863,3]
[367115772,1750662731416,-512.94814965,0.00029863,3]
[367115773,1750662731425,-1385.46,0.00029863,3]
[367115774,1750662731436,-1205.8,0.00029863,3]
[367115775,1750662731445,-1258.03765544,0.00029866,21]
[367115776,1750662731454,-201.3339867,0.0002989,30]
[367115777,1750662731464,-19646.50194857,0.000299,2]
[367115778,1750662731474,-150.19,0.00029966,2]
[367115779,1750662731483,-230.57831343,0.0002999,2]
[367115780,1750662731492,-600.76965013,0.0002999,2]
[367115781,1750662731502,-52652.94,0.0003,7]
[367115782,1750662731511,-80817.73203045,0.0003,5]
[367115783,1750662731522,-642.04713351,0.0003,30]
[367115784,1750662731532,-2725.51947915,0.0003,5]
[367115785,1750662731541,-600.92160133,0.0003,5]
[367115786,1750662731550,-1025.5632217,0.0003,2]
[367115787,1750662731559,-185.9965724,0.0003,30]
[367115788,1750662731570,-1763.30711135,0.0003,2]
[367115789,1750662731579,-161.06196694,0.0003,2]
[367115790,1750662731588,-1556.33258772,0.0003,2]
[367115791,1750662731598,-368.15499092,0.0003,2]
[367115792,1750662731608,-201.3339867,0.0003,30]
[367115793,1750662731617,-191.0,0.0003,30]
[367115794,1750662731628,-214.0,0.0003,2]
[367115795,1750662731639,-4000.0,0.0003,4]
[367115796,1750662731648,-150.0,0.00030026,2]
[367115797,1750662731657,-193.313,0.00030026,2]
[367115798,1750662731667,-240.448,0.00030026,2]
[367115799,1750662731677,-180.388,0.00030026,2]
[367115800,1750662731687,-150.0,0.00030026,2]
[367115801,1750662731696,-150.0,0.00030026,2]
[367115802,1750662731706,-3336.0,0.00030026,2]
[367115803,1750662731715,-1015.96,0.00030026,2]
[367115804,1750662731723,-638.0,0.00030026,2]
[367115805,1750662731733,-803.0,0.00030026,2]
[367115806,1750662731743,-201.3339867,0.0003011,30]
[367115807,1750662731753,-195.77514777,0.0003013,2]
[367115808,1750662731762,-5455.753665,0.00030136,3]
[367115809,1750662731771,-151.476984,0.00030136,3]
[367115810,1750662731781,-906.91,0.00030136,3]
[367115811,1750662731790,-490.0,0.00030136,3]
[367115812,1750662731800,-490.0,0.00030136,3]
[367115813,1750662731809,-733.39,0.00030136,3]
[367115814,1750662731818,-490.0,0.00030136,3]
[367115815,1750662731828,-490.0,0.00030136,3]
[367115816,1750662731837,-490.0,0.00030136,3]
[367115817,1750662731846,-490.0,0.00030136,3]
[367115818,1750662731855,-252.921479,0.00030136,3]
[367115819,1750662731865,-958.78,0.00030136,3]
[367115820,1750662731874,-972.11,0.00030136,3]
[367115821,1750662731885,-490.0,0.00030136,3]
[367115822,1750662731895,-2591.829598,0.00030136,3]
[367115823,1750662731905,-615.11,0.00030136,3]
[367115824,1750662731915,-804.23,0.00030136,3]
[367115825,1750662731926,-490.0,0.00030136,3]
[367115826,1750662731935,-490.0,0.00030136,3]
[367115827,1750662731944,-593.8097913,0.00030136,3]
[367115828,1750662731954,-490.0,0.00030136,3]
[367115829,1750662731963,-490.0,0.00030136,3]
[367115830,1750662731973,-1075.31,0.00030136,3]
[367115831,1750662731982,-811.41,0.00030136,3]
[367115832,1750662731992,-663.45,0.00030136,3]
[367115833,1750662732002,-490.0,0.00030136,3]
[367115834,1750662732011,-695.49,0.00030136,3]
[367115835,1750662732020,-490.0,0.00030136,3]
[367115836,1750662732030,-977.66,0.00030136,3]
[367115837,1750662732040,-833.21,0.00030136,3]
[367115838,1750662732050,-591.25,0.00030136,3]
[367115839,1750662732060,-277.64362529,0.00030136,3]
[367115840,1750662732070,-690.16,0.00030136,3]
[367115841,1750662732080,-1109.36,0.00030136,3]
[367115842,1750662732089,-390.85545662,0.00030136,3]
[367115843,1750662732099,-490.0,0.00030136,3]
[367115844,1750662732108,-526.92,0.00030136,3]
[367115845,1750662732118,-519.11,0.00030136,3]
[367115846,1750662732127,-490.0,0.00030136,3]
[367115847,1750662732138,-970.12,0.00030136,3]
[367115848,1750662732148,-1478.36,0.00030136,3]
[367115849,1750662732157,-490.0,0.00030136,3]
[367115850,1750662732167,-490.0,0.00030136,3]
[367115851,1750662732177,-1376.6,0.00030136,3]
[367115852,1750662732186,-490.0,0.00030136,3]
[367115853,1750662732195,-889.62,0.00030136,3]
[367115854,1750662732205,-490.0,0.00030136,3]
[367115855,1750662732215,-1155.19,0.00030136,3]
[367115856,1750662732224,-490.0,0.00030136,3]
[367115857,1750662732235,-495.01,0.00030136,3]
[367115858,1750662732244,-490.0,0.00030136,3]
[367115859,1750662732254,-668.52,0.00030136,3]
[367115860,1750662732264,-490.0,0.00030136,3]
[367115861,1750662732274,-698.01,0.00030136,3]
[367115862,1750662732284,-586.16,0.00030136,3]
[367115863,1750662732294,-555.31622352,0.00030136,3]
[367115864,1750662732303,-490.0,0.00030136,3]
[367115865,1750662732313,-490.0,0.00030136,3]
[367115866,1750662732322,-644.39,0.00030136,3]
[367115867,1750662732333,-617.7,0.00030136,3]
[367115868,1750662732343,-826.8,0.00030136,3]
[367115869,1750662732352,-490.0,0.00030136,3]
[367115870,1750662732362,-490.0,0.00030136,3]
[367115871,1750662732373,-490.0,0.00030136,3]
[367115872,1750662732382,-626.46,0.00030136,3]
[367115873,1750662732392,-841.55,0.00030136,3]
[367115874,1750662732402,-625.27,0.00030136,3]
[367115875,1750662732413,-1584.78,0.00030136,3]
[367115876,1750662732423,-490.0,0.00030136,3]
[367115877,1750662732433,-567.55371667,0.00030136,3]
[367115878,1750662732442,-490.0,0.00030136,3]
[367115879,1750662732452,-490.0,0.00030136,3]
[367115880,1750662732462,-1089.25,0.00030136,3]
[367115881,1750662732472,-914.26,0.00030136,3]
[367115882,1750662732482,-777.39,0.00030136,3]
[367115883,1750662732491,-667.3,0.00030136,3]
[367115884,1750662732501,-1172.55,0.00030136,3]
[367115885,1750662732511,-857.69,0.00030136,3]
[367115886,1750662732524,-601.26,0.00030136,3]
[367115887,1750662732534,-153.552939,0.00030136,3]
[367115888,1750662732544,-654.18,0.00030136,3]
[367115889,1750662732554,-1486.14,0.00030136,3]
[367115890,1750662732563,-563.6,0.00030136,3]
[367115891,1750662732573,-641.56,0.00030136,3]
[367115892,1750662732583,-2328.1,0.00030136,3]
[367115893,1750662732593,-490.0,0.00030136,3]
[367115894,1750662732603,-1714.75,0.00030136,3]
[367115895,1750662732613,-490.0,0.00030136,3]
[367115896,1750662732624,-2984.61,0.00030136,3]
[367115897,1750662732635,-834.55,0.00030136,3]
[367115898,1750662732645,-1666.5,0.00030136,3]
[367115899,1750662732655,-490.0,0.00030136,2]
[367115900,1750662732664,-579.07,0.00030136,3]
[367115901,1750662732674,-774.87,0.00030136,3]
[367115902,1750662732684,-198.016965,0.00030136,3]
[367115903,1750662732694,-490.0,0.00030136,3]
[367115904,1750662732703,-523.64,0.00030136,3]
[367115905,1750662732713,-1685.1,0.00030136,3]
[367115906,1750662732723,-685.83,0.00030136,3]
[367115907,1750662732733,-845.32,0.00030136,3]
[367115908,1750662732743,-490.0,0.00030136,3]
[367115909,1750662732753,-490.0,0.00030136,3]
[367115910,1750662732762,-1003.013708,0.00030136,3]
[367115911,1750662732772,-407.03,0.00030136,3]
[367115912,1750662732782,-490.0,0.00030136,3]
[367115913,1750662732792,-620.28,0.00030136,3]
[367115914,1750662732801,-490.0,0.00030136,3]
[367115915,1750662732811,-692.18,0.00030136,3]
[367115916,1750662732821,-583.42,0.00030136,3]
[367115917,1750662732831,-1382.11,0.00030136,3]
[367115918,1750662732841,-490.0,0.00030136,3]
[367115919,1750662732851,-957.53,0.00030136,3]
[367115920,1750662732860,-1520.85,0.00030136,3]
[367115921,1750662732870,-852.4,0.00030136,3]
[367115922,1750662732882,-1514.64,0.00030136,3]
[367115923,1750662732893,-564.98,0.00030136,3]
[367115924,1750662732903,-1413.76,0.00030136,3]
[367115925,1750662732914,-621.88,0.00030136,3]
[367115926,1750662732924,-643.76,0.00030136,3]
[367115927,1750662732933,-1486.85,0.00030136,3]
[367115928,1750662732944,-605.57,0.00030136,3]
[367115929,1750662732954,-765.6,0.00030136,3]
[367115930,1750662732964,-490.0,0.00030136,3]
[367115931,1750662732974,-635.87,0.00030136,3]
[367115932,1750662732984,-490.0,0.00030136,3]
[367115933,1750662732993,-748.29,0.00030136,3]
[367115934,1750662733004,-559.87,0.00030136,3]
[367115935,1750662733014,-702.32,0.00030136,3]
[367115936,1750662733024,-521.1,0.00030136,3]
[367115937,1750662733034,-1437.96,0.00030136,3]
[367115938,1750662733044,-933.29,0.00030136,3]
[367115939,1750662733054,-623.74,0.00030136,3]
[367115940,1750662733064,-1229.23,0.00030136,3]
[367115941,1750662733074,-1240.62,0.00030136,3]
[367115942,1750662733084,-490.0,0.00030136,3]
[367115943,1750662733094,-1044.91,0.00030136,3]
[367115944,1750662733104,-636.16,0.00030136,3]
[367115945,1750662733114,-490.92,0.00030136,3]
[367115946,1750662733124,-583.46,0.00030136,3]
[367115947,1750662733135,-1648.05,0.00030136,3]
[367115948,1750662733146,-745.48,0.00030136,3]
[367115949,1750662733156,-1819.02,0.00030136,3]
[367115950,1750662733166,-1025.74,0.00030136,3]
[367115951,1750662733176,-429.70743398,0.00030136,3]
[367115952,1750662733186,-507.64,0.00030136,3]
[367115953,1750662733196,-1801.52,0.00030136,3]
[367115954,1750662733206,-1776.13,0.00030136,3]
[367115955,1750662733216,-803.35,0.00030136,3]
[367115956,1750662733226,-1305.95,0.00030136,3]
[367115957,1750662733235,-490.0,0.00030136,3]
[367115958,1750662733245,-825.12,0.00030136,3]
[367115959,1750662733255,-553.17,0.00030136,3]
[367115960,1750662733265,-1449.74,0.00030136,3]
[367115961,1750662733275,-1184.6,0.00030136,3]
[367115962,1750662733285,-2077.31,0.00030136,3]
[367115963,1750662733295,-903.1,0.00030136,3]
[367115964,1750662733305,-840.82,0.00030136,3]
[367115965,1750662733315,-1228.76,0.00030136,3]
[367115966,1750662733325,-972.48,0.00030136,3]
[367115967,1750662733335,-1017.63,0.00030136,3]
[367115968,1750662733345,-490.0,0.00030136,3]
[367115969,1750662733355,-490.0,0.00030136,3]
[367115970,1750662733365,-698.82,0.00030136,3]
[367115971,1750662733374,-1683.09,0.00030136,3]
[367115972,1750662733385,-614.18,0.00030136,3]
[367115973,1750662733395,-1068.5,0.00030136,3]
[367115974,1750662733405,-492.43,0.00030136,3]
[367115975,1750662733415,-490.0,0.00030136,3]
[367115976,1750662733424,-899.45,0.00030136,3]
[367115977,1750662733434,-490.0,0.00030136,3]
[367115978,1750662733444,-1018.31,0.00030136,3]
[367115979,1750662733453,-1636.32,0.00030136,3]
[367115980,1750662733463,-1034.85,0.00030136,3]
[367115981,1750662733473,-490.0,0.00030136,3]
[367115982,1750662733482,-636.43,0.00030136,3]
[367115983,1750662733492,-514.73,0.00030136,3]
[367115984,1750662733502,-1597.54,0.00030136,3]
[367115985,1750662733511,-151.3016939,0.00030136,3]
[367115986,1750662733524,-878.08,0.00030136,3]
[367115987,1750662733533,-490.0,0.00030136,3]
[367115988,1750662733543,-933.44,0.00030136,3]
[367115989,1750662733553,-490.0,0.00030136,3]
[367115990,1750662733563,-980.14,0.00030136,3]
[367115991,1750662733573,-490.0,0.00030136,3]
[367115992,1750662733583,-1351.29,0.00030136,3]
[367115993,1750662733593,-490.0,0.00030136,3]
[367115994,1750662733603,-1021.72,0.00030136,3]
[367115995,1750662733613,-490.0,0.00030136,3]
[367115996,1750662733623,-490.0,0.00030136,3]
[367115997,1750662733635,-2515.92,0.00030136,3]
[367115998,1750662733644,-563.49,0.00030136,3]
[367115999,1750662733654,-718.42,0.00030136,3]
[367116000,1750662733664,-973.74,0.00030136,3]
[367116001,1750662733674,-490.0,0.00030136,3]
[367116002,1750662733684,-763.59,0.00030136,3]
[367116003,1750662733694,-490.0,0.00030136,3]
[367116004,1750662733704,-1171.08,0.00030136,3]
[367116005,1750662733716,-490.0,0.00030136,3]
[367116006,1750662733725,-806.32,0.00030136,3]
[367116007,1750662733735,-490.0,0.00030136,3]
[367116008,1750662733745,-1313.3,0.00030136,3]
[367116009,1750662733755,-490.0,0.00030136,3]
[367116010,1750662733765,-1866.63,0.00030136,3]
[367116011,1750662733775,-783.39,0.00030136,3]
[367116012,1750662733785,-1408.5,0.00030136,3]
[367116013,1750662733795,-760.51,0.00030136,3]
[367116014,1750662733805,-640.07,0.00030136,3]
[367116015,1750662733815,-1113.91,0.00030136,3]
[367116016,1750662733824,-1615.12,0.00030136,3]
[367116017,1750662733834,-1204.57,0.00030136,3]
[367116018,1750662733844,-490.0,0.00030136,3]
[367116019,1750662733854,-852.31,0.00030136,3]
[367116020,1750662733863,-1617.57,0.00030136,3]
[367116021,1750662733874,-1344.16,0.00030136,3]
[367116022,1750662733885,-1189.28,0.00030136,3]
[367116023,1750662733895,-490.0,0.00030136,3]
[367116024,1750662733904,-924.24,0.00030136,3]
[367116025,1750662733914,-1017.87,0.00030136,3]
[367116026,1750662733924,-1327.65,0.00030136,3]
[367116027,1750662733934,-490.0,0.00030136,3]
[367116028,1750662733944,-816.97,0.00030136,3]
[367116029,1750662733954,-1444.07,0.00030136,3]
[367116030,1750662733964,-1505.21,0.00030136,3]
[367116031,1750662733974,-1444.07,0.00030136,3]
[367116032,1750662733983,-1444.07,0.00030136,3]
[367116033,1750662733993,-1444.07,0.00030136,3]
[367116034,1750662734003,-1444.07,0.00030136,3]
[367116035,1750662734013,-490.0,0.00030136,3]
[367116036,1750662734023,-1444.07,0.00030136,3]
[367116037,1750662734032,-1444.07,0.00030136,3]
[367116038,1750662734042,-1444.07,0.00030136,3]
[367116039,1750662734052,-1444.07,0.00030136,3]
[367116040,1750662734062,-1444.07,0.00030136,3]
[367116041,1750662734072,-1444.07,0.00030136,3]
[367116042,1750662734082,-490.0,0.00030136,3]
[367116043,1750662734092,-490.0,0.00030136,3]
[367116044,1750662734102,-995.43,0.00030136,3]
[367116045,1750662734112,-490.0,0.00030136,3]
[367116046,1750662734122,-3010.94,0.00030136,2]
[367116047,1750662734135,-1097.45,0.00030136,3]
[367116048,1750662734146,-753.53,0.00030136,3]
[367116049,1750662734157,-1037.06,0.00030136,3]
[367116050,1750662734496,-1995.53,0.00030136,3]
[367116051,1750662734520,-490.0,0.00030136,3]
[367116052,1750662734531,-660.48,0.00030136,3]
[367116053,1750662734540,-752.2,0.00030136,3]
[367116054,1750662734550,-1341.44,0.00030136,3]
[367116055,1750662734559,-350.49450158,0.00030136,3]
[367116056,1750662734569,-850.05,0.00030136,3]
[367116057,1750662734578,-490.0,0.00030136,3]
[367116058,1750662734588,-581.79,0.00030136,3]
[367116059,1750662734599,-507.29,0.00030136,3]
[367116060,1750662734608,-2153.23,0.00030136,3]
[367116061,1750662734618,-557.61,0.00030136,3]
[367116062,1750662734627,-572.59,0.00030136,3]
[367116063,1750662734639,-490.0,0.00030136,3]
[367116064,1750662734648,-490.0,0.00030136,3]
[367116065,1750662734657,-2413.05,0.00030136,3]
[367116066,1750662734667,-490.0,0.00030136,3]
[367116067,1750662734676,-566.43,0.00030136,3]
[367116068,1750662734686,-1348.78,0.00030136,3]
[367116069,1750662734696,-2316.4,0.00030136,3]
[367116070,1750662734705,-1609.27,0.00030136,3]
[367116071,1750662734715,-490.0,0.00030136,3]
[367116072,1750662734724,-569.99,0.00030136,3]
[367116073,1750662734733,-490.0,0.00030136,3]
[367116074,1750662734743,-490.0,0.00030136,3]
[367116075,1750662734753,-861.6,0.00030136,3]
[367116076,1750662734763,-490.0,0.00030136,3]
[367116077,1750662734772,-2663.87,0.00030136,3]
[367116078,1750662734782,-731.27,0.00030136,3]
[367116079,1750662734791,-560.0,0.00030136,3]
[367116080,1750662734801,-1117.5,0.00030136,3]
[367116081,1750662734811,-311.89920048,0.00030136,3]
[367116082,1750662734821,-921.04,0.00030136,3]
[367116083,1750662734831,-783.55,0.00030136,3]
[367116084,1750662734841,-600.11,0.00030136,3]
[367116085,1750662734851,-1052.0,0.00030136,3]
[367116086,1750662734861,-490.0,0.00030136,3]
[367116087,1750662734871,-785.27,0.00030136,3]
[367116088,1750662734879,-1688.41,0.00030136,3]
[367116089,1750662734891,-595.61,0.00030136,3]
[367116090,1750662734900,-1726.17,0.00030136,3]
[367116091,1750662734909,-950.58,0.00030136,3]
[367116092,1750662734919,-208.52981464,0.00030136,3]
[367116093,1750662734928,-1953.41,0.00030136,3]
[367116094,1750662734938,-523.44,0.00030136,3]
[367116095,1750662734947,-603.07,0.00030136,3]
[367116096,1750662734957,-1456.32,0.00030136,3]
[367116097,1750662734967,-501.63,0.00030136,3]
[367116098,1750662734977,-1698.32,0.00030136,3]
[367116099,1750662734986,-490.0,0.00030136,3]
[367116100,1750662734996,-490.0,0.00030136,3]
[367116101,1750662735006,-490.0,0.00030136,3]
[367116102,1750662735016,-1007.06,0.00030136,3]
[367116103,1750662735026,-1681.01,0.00030136,3]
[367116104,1750662735036,-490.0,0.00030136,3]
[367116105,1750662735045,-1708.4,0.00030136,3]
[367116106,1750662735054,-873.29,0.00030136,3]
[367116107,1750662735064,-1098.59,0.00030136,3]
[367116108,1750662735074,-1944.53,0.00030136,3]
[367116109,1750662735083,-490.0,0.00030136,3]
[367116110,1750662735094,-2433.81,0.00030136,3]
[367116111,1750662735104,-501.38,0.00030136,3]
[367116112,1750662735114,-750.42,0.00030136,3]
[367116113,1750662735124,-577.0,0.00030136,3]
[367116114,1750662735136,-662.45,0.00030136,3]
[367116115,1750662735145,-490.0,0.00030136,3]
[367116116,1750662735155,-1247.14,0.00030136,3]
[367116117,1750662735165,-1551.77,0.00030136,3]
[367116118,1750662735175,-1650.44,0.00030136,3]
[367116119,1750662735185,-703.59,0.00030136,3]
[367116120,1750662735194,-529.91,0.00030136,3]
[367116121,1750662735204,-326.60905831,0.00030136,3]
[367116122,1750662735214,-490.0,0.00030136,3]
[367116123,1750662735224,-490.0,0.00030136,3]
[367116124,1750662735234,-788.62,0.00030136,3]
[367116125,1750662735244,-912.47,0.00030136,3]
[367116126,1750662735255,-1251.29,0.00030136,3]
[367116127,1750662735264,-490.0,0.00030136,3]
[367116128,1750662735274,-655.66,0.00030136,3]
[367116129,1750662735284,-675.57,0.00030136,3]
[367116130,1750662735294,-300.0,0.00030136,3]
[367116131,1750662735305,-1664.2,0.00030136,3]
[367116132,1750662735315,-1679.9,0.00030136,3]
[367116133,1750662735325,-490.0,0.00030136,3]
[367116134,1750662735334,-1433.27,0.00030136,3]